bitfinex-derivatives/quotes_BNBF0:USTF0_20260110
["timestamp","ask_amount","ask_price","bid_price","bid_amount"]
[1768065142136,0.19128394,910.3,909.09,0.69742522]
[1768065142337,0.19128394,910.3,909.1,0.69742522]
[1768065142537,0.19128394,910.3,909.11,0.69742522]
[1768065142740,0.19128394,910.3,909.12,0.69742522]
[1768065142940,0.19128394,910.3,909.13,0.69742522]
[1768065143137,0.19128394,910.3,909.14,0.69742522]
[1768065143340,0.19128394,910.3,909.15,0.69742522]
[1768065143546,0.19128394,910.3,909.16,0.69742522]
[1768065143746,0.19128394,910.3,909.17,0.69742522]
[1768065143946,0.19128394,910.3,909.18,0.69742522]
[1768065144142,0.19128394,910.3,909.19,0.69742522]
[1768065144341,0.19128394,910.3,909.2,0.69742522]
[1768065144540,0.19128394,910.3,909.21,0.69742522]
[1768065144745,0.19128394,910.3,909.22,0.69742522]
[1768065145045,0.19128394,910.3,909.23,0.69742522]
[1768065145345,0.19128394,910.3,909.24,0.69742522]
[1768065145646,0.19128394,910.3,909.25,0.69742522]
[1768065145842,0.19128394,910.3,909.26,0.69742522]
[1768065146140,0.19128394,910.3,909.27,0.69742522]
[1768065146345,0.19128394,910.3,909.28,0.69742522]
[1768065146641,0.19128394,910.3,909.29,0.69742522]
[1768065146845,0.19128394,910.3,909.3,0.69742522]
[1768065147045,0.19128394,910.3,909.31,0.69742522]
[1768065147345,0.19128394,910.3,909.32,0.69742522]
[1768065147546,0.19128394,910.3,909.33,0.69742522]
[1768065147846,0.19128394,910.3,909.34,0.69742522]
[1768065148044,0.19128394,910.3,909.35,0.69742522]
[1768065148244,0.19128394,910.3,909.06,0.8222962]
[1768065148446,0.19128394,910.3,909.07,0.69758079]
[1768065148642,0.19128394,910.3,909.08,0.69758079]
[1768065148847,0.19128394,910.3,909.09,0.69758079]
[1768065149040,0.19128394,910.3,909.1,0.69758079]
[1768065149243,0.19128394,910.3,909.11,0.69758079]
[1768065149445,0.19128394,910.3,909.12,0.69758079]
[1768065149646,0.19128394,910.3,909.13,0.69758079]
[1768065149844,0.19128394,910.3,909.14,0.69758079]
[1768065150043,0.19128394,910.3,909.15,0.69758079]
[1768065150244,0.19128394,910.3,909.16,0.69758079]
[1768065150444,0.19128394,910.3,909.17,0.69758079]
[1768065150648,0.19128394,910.3,909.18,0.69758079]
[1768065150841,0.19128394,910.3,909.19,0.69758079]
[1768065151046,0.19128394,910.3,909.2,0.69758079]
[1768065151244,0.19128394,910.3,909.21,0.69758079]
[1768065151443,0.19128394,910.3,909.22,0.69758079]
[1768065151643,0.19128394,910.3,909.23,0.69758079]
[1768065151841,0.19128394,910.3,909.13,1.608]
[1768065151842,0.19128394,910.3,909.24,0.69758079]
[1768065152044,0.19128394,910.3,909.25,0.69758079]
[1768065152246,0.19128394,910.3,909.26,0.69758079]
[1768065152446,0.19128394,910.3,909.27,0.69758079]
[1768065152749,0.19128394,910.3,909.28,0.69758079]
[1768065152947,0.19128394,910.3,909.29,0.69758079]
[1768065153145,0.19128394,910.3,909.3,0.69758079]
[1768065153343,0.19128394,910.3,909.31,0.69758079]
[1768065153548,0.19128394,910.3,909.32,0.69758079]
[1768065153748,0.19128394,910.3,909.33,0.69758079]
[1768065153946,0.19128394,910.3,909.34,0.69758079]
[1768065154144,0.19128394,910.3,909.35,0.69758079]
[1768065154448,0.19128394,910.3,909.36,0.69758079]
[1768065154644,0.19128394,910.3,909.13,1.608]
[1768065154848,0.19128394,910.3,909.14,0.70061274]
[1768065155048,0.19128394,910.3,909.15,0.70061274]
[1768065155247,0.19128394,910.3,909.16,0.70061274]
[1768065155445,0.19128394,910.3,909.17,0.70061274]
[1768065155745,0.19128394,910.3,909.18,0.70061274]
[1768065155948,0.19128394,910.3,909.19,0.70061274]
[1768065156147,0.19128394,910.3,909.2,0.70061274]
[1768065156346,0.19128394,910.3,909.21,0.70061274]
[1768065156551,0.19128394,910.3,909.22,0.70061274]
[1768065156753,0.19128394,910.3,909.23,0.70061274]
[1768065156949,0.19128394,910.3,909.24,0.70061274]
[1768065157150,0.19128394,910.3,909.25,0.70061274]
[1768065157352,0.19128394,910.3,909.26,0.70061274]
[1768065157551,0.19128394,910.3,909.27,0.70061274]
[1768065157750,0.19128394,910.3,909.28,0.70061274]
[1768065158048,0.19128394,910.3,909.29,0.70061274]
[1768065158251,0.19128394,910.3,909.3,0.70061274]
[1768065158453,0.19128394,910.3,909.31,0.70061274]
[1768065158653,0.19128394,910.3,909.32,0.70061274]
[1768065158853,0.19128394,910.3,909.33,0.70061274]
[1768065159051,0.19128394,910.3,909.34,0.70061274]
[1768065159350,0.19128394,910.3,909.35,0.70061274]
[1768065159552,0.19128394,910.3,909.36,0.70061274]
[1768065159750,0.19128394,910.3,909.13,1.608]
[1768065159950,0.19128394,910.3,909.14,0.70061304]
[1768065160150,0.19128394,910.3,909.15,0.70061304]
[1768065160355,0.19128394,910.3,909.16,0.70061304]
[1768065160555,0.19128394,910.3,909.17,0.70061304]
[1768065160756,0.19128394,910.3,909.18,0.70061304]
[1768065160956,0.19128394,910.3,909.19,0.70061304]
[1768065161152,0.19128394,910.3,909.2,0.70061304]
[1768065161356,0.19128394,910.3,909.21,0.70061304]
[1768065161555,0.19128394,910.3,909.22,0.70061304]
[1768065161758,0.19128394,910.3,909.23,0.70061304]
[1768065162054,0.19128394,910.3,909.24,0.70061304]
[1768065162257,0.19128394,910.3,909.25,0.70061304]
[1768065162457,0.19128394,910.3,909.26,0.70061304]
[1768065162654,0.19128394,910.3,909.27,0.70061304]
[1768065162860,0.19128394,910.3,909.28,0.70061304]
[1768065163060,0.19128394,910.3,909.29,0.70061304]
[1768065163258,0.19128394,910.3,909.3,0.70061304]
[1768065163460,0.19128394,910.3,909.31,0.70061304]
[1768065163658,0.19128394,910.3,909.32,0.70061304]
[1768065163958,0.19128394,910.3,909.33,0.70061304]
[1768065164158,0.19128394,910.3,909.13,1.608]
[1768065164458,0.19128394,910.3,909.14,0.70061351]
[1768065164662,0.19128394,910.3,909.15,0.70061351]
[1768065164958,0.19128394,910.3,909.16,0.70061351]
[1768065165162,0.19128394,910.3,909.17,0.70061351]
[1768065165458,0.19128394,910.3,909.18,0.70061351]
[1768065165661,0.19128394,910.3,909.19,0.70061351]
[1768065165861,0.19128394,910.3,909.2,0.70061351]
[1768065166056,0.19128394,910.3,909.21,0.70061351]
[1768065166257,0.19128394,910.3,909.22,0.70061351]
[1768065166461,0.19128394,910.3,909.23,0.70061351]
[1768065166760,0.19128394,910.3,909.24,0.70061351]
[1768065166960,0.19128394,910.3,909.25,0.70061351]
[1768065167161,0.19128394,910.3,909.26,0.70061351]
[1768065167463,0.19128394,910.3,909.27,0.70061351]
[1768065167662,0.19128394,910.3,909.28,0.70061351]
[1768065167963,0.19128394,910.3,909.29,0.70061351]
[1768065168263,0.19128394,910.3,909.3,0.70061351]
[1768065168458,0.19128394,910.3,909.31,0.70061351]
[1768065168758,0.19128394,910.3,909.32,0.70061351]
[1768065168959,0.19128394,910.3,909.33,0.70061351]
[1768065169162,0.19128394,910.3,909.13,1.608]
[1768065169362,0.19128394,910.3,909.14,0.70050596]
[1768065169560,0.19128394,910.3,909.15,0.70050596]
[1768065169766,0.19128394,910.3,909.16,0.70050596]
[1768065169966,0.19128394,910.3,909.17,0.70050596]
[1768065170260,0.19128394,910.3,909.18,0.70050596]
[1768065170461,0.19128394,910.3,909.19,0.70050596]
[1768065170666,0.19128394,910.3,909.2,0.70050596]
[1768065170863,0.19128394,910.3,909.21,0.70050596]
[1768065171162,0.19128394,910.3,909.22,0.70050596]
[1768065171466,0.19128394,910.3,909.23,0.70050596]
[1768065171668,0.19128394,910.3,909.24,0.70050596]
[1768065171967,0.19128394,910.3,909.25,0.70050596]
[1768065172164,0.19128394,910.3,909.26,0.70050596]
[1768065172365,0.19128394,910.3,909.13,1.608]
[1768065172564,0.19128394,910.3,909.14,0.70050616]
[1768065172868,0.19128394,910.3,909.15,0.70050616]
[1768065173068,0.19128394,910.3,909.16,0.70050616]
[1768065173368,0.19128394,910.3,909.17,0.70050616]
[1768065173563,0.19128394,910.3,909.18,0.70050616]
[1768065173769,0.19128394,910.3,909.19,0.70050616]
[1768065174067,0.19128394,910.3,909.2,0.70050616]
[1768065174268,0.19128394,910.3,909.21,0.70050616]
[1768065174567,0.19128394,910.3,909.22,0.70050616]
[1768065174768,0.19128394,910.3,909.13,1.608]
[1768065174964,0.19128394,910.3,909.14,0.70050616]
[1768065175163,0.19128394,910.3,909.15,0.70050616]
[1768065175364,0.19128394,910.3,909.16,0.70050616]
[1768065175568,0.19128394,910.3,909.17,0.70050616]
[1768065175764,0.19128394,910.3,909.18,0.70050616]
[1768065176068,0.19128394,910.3,909.19,0.70050616]
[1768065176265,0.19128394,910.3,909.2,0.70050616]
[1768065176464,0.19128394,910.3,909.21,0.70050616]
[1768065176666,0.19128394,910.3,909.22,0.70050616]
[1768065176869,0.19128394,910.3,909.13,1.608]
[1768065177070,0.19128394,910.3,909.14,0.70050616]
[1768065177270,0.19128394,910.3,909.15,0.70050616]
[1768065177470,0.19128394,910.3,909.16,0.70050616]
[1768065177670,0.19128394,910.3,909.17,0.70050616]
[1768065177970,0.19128394,910.3,909.18,0.70050616]
[1768065178266,0.19128394,910.3,909.19,0.70050616]
[1768065178571,0.19128394,910.3,909.2,0.70050616]
[1768065178771,0.19128394,910.3,909.21,0.70050616]
[1768065179071,0.19128394,910.3,909.22,0.70050616]
[1768065179368,0.19128394,910.3,909.13,1.608]
[1768065179672,0.19128394,910.3,909.14,0.70050623]
[1768065179866,0.19128394,910.3,909.15,0.70050623]
[1768065180068,0.19128394,910.3,909.16,0.70050623]
[1768065180267,0.19128394,910.3,909.17,0.70050623]
[1768065180467,0.19128394,910.3,909.18,0.70050623]
[1768065180671,0.19128394,910.3,909.19,0.70050623]
[1768065180874,0.19128394,910.3,909.2,0.70050623]
[1768065181172,0.19128394,910.3,909.21,0.70050623]
[1768065181370,0.19128394,910.3,909.22,0.70050623]
[1768065181573,0.19128394,910.3,909.13,1.608]
[1768065181874,0.19128394,910.3,909.14,0.70050615]
[1768065182170,0.19128394,910.3,909.15,0.70050615]
[1768065182373,0.19128394,910.3,909.16,0.70050615]
[1768065182570,0.19128394,910.3,909.17,0.70050615]
[1768065182777,0.19128394,910.3,909.18,0.70050615]
[1768065182970,0.19128394,910.3,909.19,0.70050615]
[1768065183171,0.19128394,910.3,909.2,0.70050615]
[1768065183370,0.19128394,910.3,909.21,0.70050615]
[1768065183573,0.19128394,910.3,909.22,0.70050615]
[1768065183774,0.19128394,910.3,909.23,0.70050615]
[1768065184071,0.19128394,910.3,909.24,0.70050615]
[1768065184274,0.19128394,910.3,909.25,0.70050615]
[1768065184475,0.19128394,910.3,909.26,0.70050615]
[1768065184669,0.19128394,910.3,909.27,0.70050615]
[1768065184973,0.19128394,910.3,909.28,0.70050615]
[1768065185169,0.19128394,910.3,909.29,0.70050615]
[1768065185371,0.19128394,910.3,909.3,0.70050615]
[1768065185571,0.19128394,910.3,909.31,0.70050615]
[1768065185771,0.19128394,910.3,909.32,0.70050615]
[1768065186075,0.19128394,910.3,909.33,0.70050615]
[1768065186276,0.19128394,910.3,909.34,0.70050615]
[1768065186472,0.19128394,910.3,909.07,4.09107097]
[1768065186672,0.19128394,910.3,909.08,0.70056541]
[1768065186976,0.19128394,910.3,909.09,0.70056541]
[1768065187172,0.19128394,910.3,909.1,0.70056541]
[1768065187477,0.19128394,910.3,909.11,0.70056541]
[1768065187675,0.19128394,910.3,909.12,0.70056541]
[1768065187876,0.19128394,910.3,909.13,0.70056541]
[1768065188077,0.19128394,910.3,909.14,0.70056541]
[1768065188379,0.19128394,910.3,909.15,0.70056541]
[1768065188674,0.19128394,910.3,909.16,0.70056541]
[1768065188974,0.19128394,910.3,909.17,0.70056541]
[1768065189176,0.19128394,910.3,909.18,0.70056541]
[1768065189376,0.19128394,910.3,909.19,0.70056541]
[1768065189578,0.19128394,910.3,909.2,0.70056541]
[1768065189877,0.19128394,910.3,909.21,0.70056541]
[1768065190074,0.19128394,910.3,909.22,0.70056541]
[1768065190276,0.19128394,910.3,909.23,0.70056541]
[1768065190574,0.19128394,910.3,909.24,0.70056541]
[1768065190876,0.19128394,910.3,909.25,0.70056541]
[1768065191076,0.19128394,910.3,909.14,1.755]
[1768065191077,0.19128394,910.3,909.26,0.70056541]
[1768065191374,0.19128394,910.3,909.27,0.70056541]
[1768065191577,0.19128394,910.3,909.28,0.70056541]
[1768065191778,0.19128394,910.3,909.29,0.70056541]
[1768065192074,0.19128394,910.3,909.3,0.70056541]
[1768065192374,0.19128394,910.3,909.31,0.70056541]
[1768065192573,0.19128394,910.3,909.32,0.70056541]
[1768065192774,0.19128394,910.3,909.33,0.70056541]
[1768065192977,0.19128394,910.3,909.34,0.70056541]
[1768065193174,0.19128394,910.3,909.35,0.70056541]
[1768065193374,0.19128394,910.3,909.14,1.755]
[1768065193573,0.19128394,910.3,909.15,0.70073107]
[1768065193779,0.19128394,910.3,909.16,0.70073107]
[1768065193973,0.19128394,910.3,909.17,0.70073107]
[1768065194178,0.19128394,910.3,909.18,0.70073107]
[1768065194373,0.19128394,910.3,909.19,0.70073107]
[1768065194674,0.19128394,910.3,909.2,0.70073107]
[1768065194877,0.19128394,910.3,909.21,0.70073107]
[1768065195073,0.19128394,910.3,909.22,0.70073107]
[1768065195374,0.19128394,910.3,909.23,0.70073107]
[1768065195574,0.19128394,910.3,909.24,0.70073107]
[1768065195773,0.19128394,910.3,909.25,0.70073107]
[1768065195977,0.19128394,910.3,909.26,0.70073107]
[1768065196277,0.19128394,910.3,909.27,0.70073107]
[1768065196478,0.19128394,910.3,909.28,0.70073107]
[1768065196679,0.19128394,910.3,909.29,0.70073107]
[1768065196974,0.19128394,910.3,909.3,0.70073107]
[1768065197273,0.19128394,910.3,909.31,0.70073107]
[1768065197576,0.19128394,910.3,909.32,0.70073107]
[1768065197776,0.19128394,910.3,909.33,0.70073107]
[1768065197976,0.19128394,910.3,909.34,0.70073107]
[1768065198177,0.19128394,910.3,909.35,0.70073107]
[1768065198377,0.19128394,910.3,909.14,1.755]
[1768065198676,0.19128394,910.3,909.15,0.7007313]
[1768065198877,0.19128394,910.3,909.16,0.7007313]
[1768065199177,0.19128394,910.3,909.17,0.7007313]
[1768065199378,0.19128394,910.3,909.18,0.7007313]
[1768065199579,0.19128394,910.3,909.19,0.7007313]
[1768065199779,0.19128394,910.3,909.2,0.7007313]
[1768065199975,0.19128394,910.3,909.21,0.7007313]
[1768065200274,0.19128394,910.3,909.22,0.7007313]
[1768065200479,0.19128394,910.3,909.23,0.7007313]
[1768065200678,0.19128394,910.3,909.24,0.7007313]
[1768065200975,0.19128394,910.3,909.25,0.7007313]
[1768065201175,0.19128394,910.3,909.26,0.7007313]
[1768065201378,0.19128394,910.3,909.27,0.7007313]
[1768065201575,0.19128394,910.3,909.28,0.7007313]
[1768065201776,0.19128394,910.3,909.29,0.7007313]
[1768065201980,0.19128394,910.3,909.3,0.7007313]
[1768065202176,0.19128394,910.3,909.31,0.7007313]
[1768065202377,0.19128394,910.3,909.32,0.7007313]
[1768065202680,0.19128394,910.3,909.33,0.7007313]
[1768065202876,0.19128394,910.3,909.14,1.755]
[1768065203079,0.19128394,910.3,909.15,0.70073117]
[1768065203374,0.19128394,910.3,909.16,0.70073117]
[1768065203574,0.19128394,910.3,909.14,1.755]
[1768065203575,0.19128394,910.3,909.17,0.70073117]
[1768065203776,0.19128394,910.3,909.18,0.70073117]
[1768065204077,0.19128394,910.3,909.19,0.70073117]
[1768065204281,0.19128394,910.3,909.2,0.70073117]
[1768065204481,0.19128394,910.3,909.21,0.70073117]
[1768065204682,0.19128394,910.3,909.22,0.70073117]
[1768065204979,0.19128394,910.3,909.23,0.70073117]
[1768065205181,0.19128394,910.3,909.24,0.70073117]
[1768065205379,0.19128394,910.3,909.25,0.70073117]
[1768065205679,0.19128394,910.3,909.26,0.70073117]
[1768065205877,0.19128394,910.3,909.27,0.70073117]
[1768065206080,0.19128394,910.3,909.28,0.70073117]
[1768065206280,0.19128394,910.3,909.29,0.70073117]
[1768065206479,0.19128394,910.3,909.3,0.70073117]
[1768065206783,0.19128394,910.3,909.31,0.70073117]
[1768065206982,0.19128394,910.3,909.32,0.70073117]
[1768065207284,0.19128394,910.3,909.33,0.70073117]
[1768065207479,0.19128394,910.3,909.14,1.755]
[1768065207684,0.19128394,910.3,909.15,0.70073115]
[1768065207882,0.19128394,910.3,909.16,0.70073115]
[1768065208082,0.19128394,910.3,909.17,0.70073115]
[1768065208286,0.19128394,910.3,909.18,0.70073115]
[1768065208482,0.19128394,910.3,909.19,0.70073115]
[1768065208683,0.19128394,910.3,909.2,0.70073115]
[1768065208883,0.19128394,910.3,909.21,0.70073115]
[1768065209184,0.19128394,910.3,909.22,0.70073115]
[1768065209385,0.19128394,910.3,909.23,0.70073115]
[1768065209584,0.19128394,910.3,909.24,0.70073115]
[1768065209788,0.19128394,910.3,909.25,0.70073115]
[1768065209988,0.19128394,910.3,909.26,0.70073115]
[1768065210189,0.19128394,910.3,909.27,0.70073115]
[1768065210385,0.19128394,910.3,909.28,0.70073115]
[1768065210589,0.19128394,910.3,909.29,0.70073115]
[1768065210790,0.19128394,910.3,909.3,0.70073115]
[1768065210986,0.19128394,910.3,909.31,0.70073115]
[1768065211185,0.19128394,910.3,909.32,0.70073115]
[1768065211390,0.19128394,910.3,909.33,0.70073115]
[1768065211590,0.19128394,910.3,909.14,1.755]
[1768065211891,0.19128394,910.3,909.15,0.70072988]
[1768065212190,0.19128394,910.3,909.16,0.70072988]
[1768065212390,0.19128394,910.3,909.17,0.70072988]
[1768065212690,0.19128394,910.3,909.18,0.70072988]
[1768065212888,0.19128394,910.3,909.19,0.70072988]
[1768065213088,0.19128394,910.3,909.2,0.70072988]
[1768065213291,0.19128394,910.3,909.21,0.70072988]
[1768065213493,0.19128394,910.3,909.22,0.70072988]
[1768065213693,0.19128394,910.3,909.23,0.70072988]
[1768065213889,0.19128394,910.3,909.24,0.70072988]
[1768065214195,0.19128394,910.3,909.25,0.70072988]
[1768065214493,0.19128394,910.3,909.26,0.70072988]
[1768065214787,0.19128394,910.3,909.27,0.70072988]
[1768065214993,0.19128394,910.3,909.28,0.70072988]
[1768065215193,0.19128394,910.3,909.29,0.70072988]
[1768065215494,0.19128394,910.3,909.3,0.70072988]
[1768065215695,0.19128394,910.3,909.31,0.70072988]
[1768065215894,0.19128394,910.3,909.32,0.70072988]
[1768065216090,0.19128394,910.3,909.33,0.70072988]
[1768065216291,0.19128394,910.3,909.34,0.70072988]
[1768065216596,0.19128394,910.3,909.35,0.70072988]
[1768065216792,0.19128394,910.3,909.14,1.755]
[1768065217096,0.19128394,910.3,909.15,0.70142928]
[1768065217294,0.19128394,910.3,909.16,0.70142928]
[1768065217491,0.19128394,910.3,909.17,0.70142928]
[1768065217691,0.19128394,910.3,909.18,0.70142928]
[1768065217897,0.19128394,910.3,909.19,0.70142928]
[1768065218096,0.19128394,910.3,909.2,0.70142928]
[1768065218293,0.19128394,910.3,909.21,0.70142928]
[1768065218595,0.19128394,910.3,909.22,0.70142928]
[1768065218796,0.19128394,910.3,909.23,0.70142928]
[1768065218993,0.19128394,910.3,909.24,0.70142928]
[1768065219296,0.19128394,910.3,909.25,0.70142928]
[1768065219593,0.19128394,910.3,909.26,0.70142928]
[1768065219799,0.19128394,910.3,909.27,0.70142928]
[1768065219997,0.19128394,910.3,909.28,0.70142928]
[1768065220294,0.19128394,910.3,909.29,0.70142928]
[1768065220493,0.19128394,910.3,909.3,0.70142928]
[1768065220797,0.19128394,910.3,909.31,0.70142928]
[1768065220993,0.19128394,910.3,909.32,0.70142928]
[1768065221297,0.19128394,910.3,909.33,0.70142928]
[1768065221493,0.19128394,910.3,909.34,0.70142928]
[1768065221697,0.19128394,910.3,909.35,0.70142928]
[1768065221893,0.19128394,910.3,909.14,1.755]
[1768065222095,0.19128394,910.3,909.15,0.70142947]
[1768065222295,0.19128394,910.3,909.16,0.70142947]
[1768065222497,0.19128394,910.3,909.17,0.70142947]
[1768065222696,0.19128394,910.3,909.18,0.70142947]
[1768065222893,0.19128394,910.3,909.19,0.70142947]
[1768065223194,0.19128394,910.3,909.2,0.70142947]
[1768065223496,0.19128394,910.3,909.21,0.70142947]
[1768065223697,0.19128394,910.3,909.22,0.70142947]
[1768065223997,0.19128394,910.3,909.23,0.70142947]
[1768065224194,0.19128394,910.3,909.24,0.70142947]
[1768065224398,0.19128394,910.3,908.94,0.8222962]
[1768065224698,0.19128394,910.3,908.95,0.70142965]
[1768065224898,0.19128394,910.3,908.96,0.70142965]
[1768065225100,0.19128394,910.3,908.97,0.70142965]
[1768065225299,0.19128394,910.3,908.98,0.70142965]
[1768065225600,0.19128394,910.3,908.99,0.70142965]
[1768065225798,0.19128394,910.3,909.0,0.70142965]
[1768065226096,0.19128394,910.3,909.01,0.70142965]
[1768065226399,0.19128394,910.3,909.02,0.70142965]
[1768065226698,0.19128394,910.3,909.03,0.70142965]
[1768065226896,0.19128394,910.3,909.04,0.70142965]
[1768065227099,0.19128394,910.3,909.05,0.70142965]
[1768065227295,0.19128394,910.3,909.06,0.70142965]
[1768065227495,0.19128394,910.3,909.07,0.70142965]
[1768065227798,0.19128394,910.3,909.08,0.70142965]
[1768065227999,0.19128394,910.3,909.09,0.70142965]
[1768065228197,0.19128394,910.3,909.1,0.70142965]
[1768065228397,0.19128394,910.3,909.11,0.70142965]
[1768065228697,0.19128394,910.3,909.12,0.70142965]
[1768065228898,0.19128394,910.3,909.13,0.70142965]
[1768065229098,0.19128394,910.3,909.14,0.70142965]
[1768065229300,0.19128394,910.3,909.15,0.70142965]
[1768065229494,0.19128394,910.3,909.16,0.70142965]
[1768065229696,0.19128394,910.3,909.17,0.70142965]
[1768065229900,0.19128394,910.3,909.18,0.70142965]
[1768065230096,0.19128394,910.3,909.19,0.70142965]
[1768065230400,0.19128394,910.3,909.2,0.70142965]
[1768065230600,0.19128394,910.3,908.97,2.102]
[1768065230800,0.19128394,910.3,908.98,0.70132812]
[1768065230998,0.19128394,910.3,908.99,0.70132812]
[1768065231199,0.19128394,910.3,909.0,0.70132812]
[1768065231402,0.19128394,910.3,909.01,0.70132812]
[1768065231603,0.19128394,910.3,909.02,0.70132812]
[1768065231802,0.19128394,910.3,909.03,0.70132812]
[1768065232004,0.19128394,910.3,909.04,0.70132812]
[1768065232205,0.19128394,910.3,909.05,0.70132812]
[1768065232402,0.19128394,910.3,909.06,1.52362432]
[1768065232603,0.19128394,910.3,909.07,0.70132812]
[1768065232905,0.19128394,910.3,909.08,0.70132812]
[1768065233105,0.19128394,910.3,909.09,0.70132812]
[1768065233302,0.19128394,910.3,909.1,0.70132812]
[1768065233501,0.19128394,910.3,909.11,0.70132812]
[1768065233704,0.19128394,910.3,909.06,0.8222962]
[1768065233705,0.19128394,910.3,909.12,0.70132812]
[1768065233902,0.19128394,910.3,909.13,0.70132812]
[1768065234107,0.19128394,910.3,909.14,0.70132812]
[1768065234406,0.19128394,910.3,909.15,0.70132812]
[1768065234706,0.19128394,910.3,909.16,0.70132812]
[1768065234903,0.19128394,910.3,909.17,0.70132812]
[1768065235105,0.19128394,910.3,909.18,0.70132812]
[1768065235306,0.19128394,910.3,909.19,0.70132812]
[1768065235605,0.19128394,910.3,909.2,0.70132812]
[1768065235806,0.19128394,910.3,909.21,0.70132812]
[1768065236007,0.19128394,910.3,909.22,0.70132812]
[1768065236207,0.19128394,910.3,909.23,0.70132812]
[1768065236502,0.19128394,910.3,909.24,0.70132812]
[1768065236702,0.19128394,910.3,909.25,0.70132812]
[1768065236902,0.19128394,910.3,909.26,0.70132812]
[1768065237107,0.19128394,910.3,909.27,0.70132812]
[1768065237406,0.19128394,910.3,909.28,0.70132812]
[1768065237604,0.19128394,910.3,909.29,0.70132812]
[1768065237803,0.19128394,910.3,909.3,0.70132812]
[1768065238007,0.19128394,910.3,909.31,0.70132812]
[1768065238206,0.19128394,910.3,909.32,0.70132812]
[1768065238405,0.19128394,910.3,909.33,0.70132812]
[1768065238609,0.19128394,910.3,909.34,0.70132812]
[1768065238810,0.19128394,910.3,909.35,0.70132812]
[1768065239111,0.19128394,910.3,909.05,0.8222962]
[1768065239306,0.19128394,910.3,909.06,0.70123684]
[1768065239606,0.19128394,910.3,909.07,0.70123684]
[1768065239807,0.19128394,910.3,909.08,0.70123684]
[1768065240012,0.19128394,910.3,909.09,0.70123684]
[1768065240209,0.19128394,910.3,909.1,0.70123684]
[1768065240412,0.19128394,910.3,909.11,0.70123684]
[1768065240612,0.19128394,910.3,909.12,0.70123684]
[1768065240917,0.19128394,910.3,909.13,0.70123684]
[1768065241116,0.19128394,910.3,909.14,0.70123684]
[1768065241412,0.19128394,910.3,909.15,0.70123684]
[1768065241615,0.19128394,910.3,909.16,0.70123684]
[1768065241814,0.19128394,910.3,909.17,0.70123684]
[1768065242116,0.19128394,910.3,909.18,0.70123684]
[1768065242314,0.19128394,910.3,909.19,0.70123684]
[1768065242518,0.19128394,910.3,909.2,0.70123684]
[1768065242718,0.19128394,910.3,909.21,0.70123684]
[1768065243017,0.19128394,910.3,909.22,0.70123684]
[1768065243314,0.19128394,910.3,909.23,0.70123684]
[1768065243512,0.19128394,910.3,909.24,0.70123684]
[1768065243717,0.19128394,910.3,909.25,0.70123684]
[1768065243917,0.19128394,910.3,909.26,0.70123684]
[1768065244217,0.19128394,910.3,909.02,0.8222962]
[1768065244218,0.19128394,910.3,909.27,0.70123684]
[1768065244418,0.19128394,910.3,909.28,0.70123684]
[1768065244618,0.19128394,910.3,909.29,0.70123684]
[1768065244820,0.19128394,910.3,909.3,0.70123684]
[1768065245019,0.19128394,910.3,909.31,0.70123684]
[1768065245215,0.19128394,910.3,909.02,0.8222962]
[1768065245514,0.19128394,910.3,909.03,0.70160752]
[1768065245719,0.19128394,910.3,909.04,0.70160752]
[1768065245917,0.19128394,910.3,909.05,0.70160752]
[1768065246119,0.19128394,910.3,909.06,0.70160752]
[1768065246316,0.19128394,910.3,909.07,0.70160752]
[1768065246520,0.19128394,910.3,909.08,0.70160752]
[1768065246721,0.19128394,910.3,909.09,0.70160752]
[1768065246920,0.19128394,910.3,909.1,0.70160752]
[1768065247216,0.19128394,910.3,909.11,0.70160752]
[1768065247421,0.19128394,910.3,909.12,0.70160752]
[1768065247616,0.19128394,910.3,909.13,0.70160752]
[1768065247819,0.19128394,910.3,909.14,0.70160752]
[1768065248017,0.19128394,910.3,909.15,0.70160752]
[1768065248220,0.19128394,910.3,909.16,0.70160752]
[1768065248422,0.19128394,910.3,909.17,0.70160752]
[1768065248622,0.19128394,910.3,909.18,0.70160752]
[1768065248922,0.19128394,910.3,909.19,0.70160752]
[1768065249219,0.19128394,910.3,909.2,0.70160752]
[1768065249422,0.19128394,910.3,909.21,0.70160752]
[1768065249723,0.19128394,910.3,909.22,0.70160752]
[1768065250022,0.19128394,910.3,909.23,0.70160752]
[1768065250216,0.19128394,910.3,909.24,0.70160752]
[1768065250419,0.19128394,910.3,909.25,0.70160752]
[1768065250618,0.19128394,910.3,909.26,0.70160752]
[1768065250819,0.19128394,910.3,909.27,0.70160752]
[1768065251022,0.19128394,910.3,909.28,0.70160752]
[1768065251220,0.19128394,910.3,909.29,0.70160752]
[1768065251418,0.19128394,910.3,909.3,0.70160752]
[1768065251720,0.19128394,910.3,909.31,0.70160752]
[1768065251918,0.19128394,910.3,909.02,0.8222962]
[1768065252223,0.19128394,910.3,909.03,0.7016033]
[1768065252522,0.19128394,910.3,909.04,0.7016033]
[1768065252723,0.19128394,910.3,909.05,0.7016033]
[1768065252920,0.19128394,910.3,909.06,0.7016033]
[1768065253120,0.19128394,910.3,909.07,0.7016033]